[Event "Titled Tuesday Blitz November 29 Early 2022"]
[White "Hambleton, Aman"]
[Black "Aarav Dengla"]
[WhiteFideId "2606577"]
[BlackFideId "45059756"]
[WhiteElo "2538"]
[BlackElo "2261"]
[Result "1-0"]
[Round "03"]
[TimeControl "180+1"]
[Date "2022.11.30"]
[WhiteClock "0:00:03"]
[BlackClock "0:00:05"]

1. d4 {[%clk 0:03:00]}  d5 {[%clk 0:02:55]} 2. c4 {[%clk 0:03:00]}  e6 {[%clk 0:02:53]} 3. Nc3 {[%clk 0:03:00]}  a6 {[%clk 0:02:51]} 4. cxd5 {[%clk 0:02:59]}  exd5 {[%clk 0:02:52]} 5. Bf4 {[%clk 0:03:00]}  Nf6 {[%clk 0:02:50]} 6. e3 {[%clk 0:03:00]}  c5 {[%clk 0:02:46]} 7. Nf3 {[%clk 0:02:54]}  Nc6 {[%clk 0:02:45]} 8. Be2 {[%clk 0:02:49]}  cxd4 {[%clk 0:02:44]} 9. Nxd4 {[%clk 0:02:50]}  Bc5 {[%clk 0:02:42]} 10. Nxc6 {[%clk 0:02:33]}  bxc6 {[%clk 0:02:43]} 11. O-O {[%clk 0:02:31]}  O-O {[%clk 0:02:43]} 12. Rc1 {[%clk 0:02:31]}  Bd6 {[%clk 0:02:42]} 13. Bxd6 {[%clk 0:02:28]}  Qxd6 {[%clk 0:02:43]} 14. Na4 {[%clk 0:02:28]}  Nd7 {[%clk 0:02:17]} 15. Qd4 {[%clk 0:02:24]}  Rb8 {[%clk 0:02:14]} 16. b3 {[%clk 0:01:53]}  Re8 {[%clk 0:02:05]} 17. Rfd1 {[%clk 0:01:44]}  Bb7 {[%clk 0:01:58]} 18. Nc5 {[%clk 0:01:35]}  Nxc5 {[%clk 0:01:56]} 19. Rxc5 {[%clk 0:01:35]}  Re4 {[%clk 0:01:49]} 20. Qc3 {[%clk 0:01:16]}  Qe5 {[%clk 0:01:37]} 21. Qxe5 {[%clk 0:01:06]}  Rxe5 {[%clk 0:01:38]} 22. Rd4 {[%clk 0:00:56]}  Re7 {[%clk 0:01:26]} 23. Ra4 {[%clk 0:00:34]}  Ra8 {[%clk 0:00:58]} 24. Kf1 {[%clk 0:00:25]}  Kf8 {[%clk 0:00:51]} 25. Rca5 {[%clk 0:00:22]}  Bc8 {[%clk 0:00:51]} 26. b4 {[%clk 0:00:14]}  Rea7 {[%clk 0:00:48]} 27. Ke1 {[%clk 0:00:13]}  Ke7 {[%clk 0:00:48]} 28. Rc5 {[%clk 0:00:12]}  Kd6 {[%clk 0:00:46]} 29. Raa5 {[%clk 0:00:13]}  Rb8 {[%clk 0:00:40]} 30. a3 {[%clk 0:00:13]}  Bb7 {[%clk 0:00:38]} 31. Kd2 {[%clk 0:00:12]}  Raa8 {[%clk 0:00:38]} 32. Bd3 {[%clk 0:00:11]}  h5 {[%clk 0:00:35]} 33. h4 {[%clk 0:00:11]}  g6 {[%clk 0:00:33]} 34. Kc3 {[%clk 0:00:10]}  Re8 {[%clk 0:00:32]} 35. Kd4 {[%clk 0:00:11]}  f5 {[%clk 0:00:31]} 36. g3 {[%clk 0:00:10]}  Kc7 {[%clk 0:00:31]} 37. Rc1 {[%clk 0:00:07]}  Kb6 {[%clk 0:00:29]} 38. Bb1 {[%clk 0:00:05]}  Re6 {[%clk 0:00:28]} 39. Rc3 {[%clk 0:00:04]}  Rae8 {[%clk 0:00:27]} 40. Rc1 {[%clk 0:00:04]}  R6e7 {[%clk 0:00:26]} 41. Bd3 {[%clk 0:00:04]}  Re6 {[%clk 0:00:26]} 42. Rac5 {[%clk 0:00:03]}  Ra8 {[%clk 0:00:25]} 43. Rb1 {[%clk 0:00:03]}  Kc7 {[%clk 0:00:24]} 44. a4 {[%clk 0:00:02]}  Kb6 {[%clk 0:00:22]} 45. Ra5 {[%clk 0:00:02]}  Rae8 {[%clk 0:00:15]} 46. Rb2 {[%clk 0:00:03]}  R6e7 {[%clk 0:00:15]} 47. Rc5 {[%clk 0:00:03]}  Re6 {[%clk 0:00:15]} 48. Rbc2 {[%clk 0:00:03]}  Ka7 {[%clk 0:00:15]} 49. b5 {[%clk 0:00:02]}  axb5 {[%clk 0:00:16]} 50. axb5 {[%clk 0:00:03]}  Kb6 {[%clk 0:00:17]} 51. bxc6 {[%clk 0:00:03]}  Bxc6 {[%clk 0:00:18]} 52. Rb2+ {[%clk 0:00:02]}  Kc7 {[%clk 0:00:18]} 53. Ra2 {[%clk 0:00:01]}  Rb8 {[%clk 0:00:17]} 54. Rac2 {[%clk 0:00:01]}  Rb4+ {[%clk 0:00:17]} 55. Kc3 {[%clk 0:00:02]}  Rb6 {[%clk 0:00:17]} 56. Kd2 {[%clk 0:00:03]}  Kd6 {[%clk 0:00:17]} 57. R5c3 {[%clk 0:00:03]}  Bd7 {[%clk 0:00:18]} 58. Ke1 {[%clk 0:00:02]}  Re8 {[%clk 0:00:18]} 59. Be2 {[%clk 0:00:02]}  Reb8 {[%clk 0:00:18]} 60. Rd3 {[%clk 0:00:02]}  Rb1+ {[%clk 0:00:18]} 61. Rd1 {[%clk 0:00:02]}  Rxd1+ {[%clk 0:00:17]} 62. Bxd1 {[%clk 0:00:03]}  Ba4 {[%clk 0:00:17]} 63. Rc1 {[%clk 0:00:03]}  Bxd1 {[%clk 0:00:17]} 64. Rxd1 {[%clk 0:00:04]}  Ke6 {[%clk 0:00:18]} 65. Ke2 {[%clk 0:00:04]}  Rb6 {[%clk 0:00:19]} 66. Kf3 {[%clk 0:00:05]}  Rb4 {[%clk 0:00:18]} 67. Ra1 {[%clk 0:00:04]}  Rb6 {[%clk 0:00:18]} 68. Ra4 {[%clk 0:00:04]}  Rd6 {[%clk 0:00:18]} 69. Kf4 {[%clk 0:00:04]}  Kf6 {[%clk 0:00:18]} 70. Rd4 {[%clk 0:00:03]}  Rd8 {[%clk 0:00:18]} 71. f3 {[%clk 0:00:03]}  Ke7 {[%clk 0:00:11]} 72. Kg5 {[%clk 0:00:01]}  Rd6 {[%clk 0:00:11]} 73. Kf4 {[%clk 0:00:01]}  Kf6 {[%clk 0:00:09]} 74. e4 {[%clk 0:00:01]}  fxe4 {[%clk 0:00:08]} 75. fxe4 {[%clk 0:00:02]}  Ra6 {[%clk 0:00:09]} 76. Rxd5 {[%clk 0:00:02]}  Ke6 {[%clk 0:00:07]} 77. Rb5 {[%clk 0:00:02]}  Kf6 {[%clk 0:00:06]} 78. Rd5 {[%clk 0:00:02]}  Ke6 {[%clk 0:00:06]} 79. Rc5 {[%clk 0:00:02]}  Kf6 {[%clk 0:00:06]} 80. Rb5 {[%clk 0:00:02]}  Rc6 {[%clk 0:00:06]} 81. Kf3 {[%clk 0:00:01]}  Rc3+ {[%clk 0:00:05]} 82. Kf4 {[%clk 0:00:02]}  Rc6 {[%clk 0:00:06]} 83. Ra5 {[%clk 0:00:02]}  Ke6 {[%clk 0:00:06]} 84. Kg5 {[%clk 0:00:02]}  Rc3 {[%clk 0:00:05]} 85. Ra6+ {[%clk 0:00:02]}  Ke5 {[%clk 0:00:05]} 86. Rxg6 {[%clk 0:00:01]}  Rxg3+ {[%clk 0:00:05]} 87. Kxh5 {[%clk 0:00:01]}  Rh3 {[%clk 0:00:06]} 88. Rg4 {[%clk 0:00:02]}  Rh1 {[%clk 0:00:06]} 89. Kg5 {[%clk 0:00:02]}  Ra1 {[%clk 0:00:06]} 90. h5 {[%clk 0:00:02]}  Ra8 {[%clk 0:00:07]} 91. h6 {[%clk 0:00:03]}  Rg8+ {[%clk 0:00:06]} 92. Kh5 {[%clk 0:00:03]}  Rh8 {[%clk 0:00:07]} 93. Rg7 {[%clk 0:00:02]}  Kxe4 {[%clk 0:00:06]} 94. Kg6 {[%clk 0:00:02]}  Ra8 {[%clk 0:00:06]} 95. Re7+ {[%clk 0:00:02]}  Kf4 {[%clk 0:00:05]} 96. h7 {[%clk 0:00:03]}  Kg4 {[%clk 0:00:06]} 97. Kg7 {[%clk 0:00:03]}  Kg5 {[%clk 0:00:05]} 98. h8=Q {[%clk 0:00:03]} 1-0


[Site "https://www.chess.com"]

[Event "Titled Tuesday Blitz November 29 Early 2022"]
[White "Hoffmann, Asa"]
[Black "Timofeev, Artyom"]
[WhiteFideId "2001470"]
[BlackFideId "4140419"]
[WhiteElo "2117"]
[BlackElo "2586"]
[Result "0-1"]
[Round "03"]
[TimeControl "180+1"]
[Date "2022.11.30"]
[WhiteClock "0:00:08"]
[BlackClock "0:00:23"]

1. d4 {[%clk 0:02:56]}  d5 {[%clk 0:02:59]} 2. Bg5 {[%clk 0:02:52]}  f6 {[%clk 0:02:57]} 3. Bf4 {[%clk 0:02:51]}  c5 {[%clk 0:02:56]} 4. e3 {[%clk 0:02:50]}  Nc6 {[%clk 0:02:55]} 5. Nf3 {[%clk 0:02:49]}  Bg4 {[%clk 0:02:50]} 6. Be2 {[%clk 0:02:46]}  e6 {[%clk 0:02:48]} 7. c3 {[%clk 0:02:40]}  Bd6 {[%clk 0:02:42]} 8. Bg3 {[%clk 0:02:40]}  Nge7 {[%clk 0:02:41]} 9. Nbd2 {[%clk 0:02:39]}  O-O {[%clk 0:02:40]} 10. e4 {[%clk 0:02:38]}  cxd4 {[%clk 0:02:36]} 11. cxd4 {[%clk 0:02:33]}  Bxf3 {[%clk 0:02:31]} 12. Bxf3 {[%clk 0:02:12]}  Nxd4 {[%clk 0:02:30]} 13. exd5 {[%clk 0:02:08]}  Nxf3+ {[%clk 0:02:30]} 14. Qxf3 {[%clk 0:02:02]}  Nxd5 {[%clk 0:02:29]} 15. O-O {[%clk 0:02:00]}  Bxg3 {[%clk 0:02:27]} 16. hxg3 {[%clk 0:02:00]}  Re8 {[%clk 0:02:26]} 17. Rad1 {[%clk 0:01:59]}  Qb6 {[%clk 0:02:24]} 18. Nc4 {[%clk 0:01:56]}  Qa6 {[%clk 0:02:24]} 19. Qb3 {[%clk 0:01:48]}  Rad8 {[%clk 0:02:21]} 20. Rfe1 {[%clk 0:01:45]}  h6 {[%clk 0:01:51]} 21. a3 {[%clk 0:01:45]}  Kh8 {[%clk 0:01:47]} 22. Rd3 {[%clk 0:01:35]}  Qc6 {[%clk 0:01:26]} 23. Na5 {[%clk 0:01:28]}  Qb6 {[%clk 0:01:26]} 24. Qa4 {[%clk 0:01:17]}  Re7 {[%clk 0:01:02]} 25. Nc4 {[%clk 0:01:14]}  Qc7 {[%clk 0:00:57]} 26. b3 {[%clk 0:01:05]}  a6 {[%clk 0:00:57]} 27. Ne3 {[%clk 0:00:54]}  Nxe3 {[%clk 0:00:56]} 28. Rdxe3 {[%clk 0:00:54]}  e5 {[%clk 0:00:56]} 29. Qg4 {[%clk 0:00:52]}  Qd7 {[%clk 0:00:50]} 30. Qg6 {[%clk 0:00:51]}  Qe8 {[%clk 0:00:50]} 31. Qf5 {[%clk 0:00:50]}  Qf7 {[%clk 0:00:43]} 32. b4 {[%clk 0:00:47]}  Kg8 {[%clk 0:00:42]} 33. f4 {[%clk 0:00:47]}  Rde8 {[%clk 0:00:41]} 34. fxe5 {[%clk 0:00:34]}  fxe5 {[%clk 0:00:41]} 35. Qe4 {[%clk 0:00:26]}  Qe6 {[%clk 0:00:39]} 36. Qh4 {[%clk 0:00:24]}  Qg6 {[%clk 0:00:34]} 37. Qe4 {[%clk 0:00:21]}  Qxe4 {[%clk 0:00:33]} 38. Rxe4 {[%clk 0:00:21]}  Kf7 {[%clk 0:00:34]} 39. Kf2 {[%clk 0:00:21]}  Kf6 {[%clk 0:00:33]} 40. g4 {[%clk 0:00:20]}  Rc7 {[%clk 0:00:33]} 41. R1e2 {[%clk 0:00:19]}  Rc3 {[%clk 0:00:32]} 42. R4e3 {[%clk 0:00:19]}  Rxe3 {[%clk 0:00:32]} 43. Kxe3 {[%clk 0:00:18]}  Rc8 {[%clk 0:00:32]} 44. Rf2+ {[%clk 0:00:18]}  Ke6 {[%clk 0:00:32]} 45. Kd3 {[%clk 0:00:18]}  Rc1 {[%clk 0:00:29]} 46. Rf8 {[%clk 0:00:17]}  Ra1 {[%clk 0:00:29]} 47. Rb8 {[%clk 0:00:14]}  Rxa3+ {[%clk 0:00:27]} 48. Ke4 {[%clk 0:00:14]}  Rg3 {[%clk 0:00:26]} 49. Rxb7 {[%clk 0:00:13]}  Rxg4+ {[%clk 0:00:26]} 50. Kf3 {[%clk 0:00:13]}  Rf4+ {[%clk 0:00:26]} 51. Ke3 {[%clk 0:00:12]}  Rg4 {[%clk 0:00:25]} 52. Kf3 {[%clk 0:00:11]}  h5 {[%clk 0:00:25]} 53. Rb6+ {[%clk 0:00:11]}  Kf5 {[%clk 0:00:25]} 54. Rxa6 {[%clk 0:00:11]}  Rxb4 {[%clk 0:00:25]} 55. Ra7 {[%clk 0:00:10]}  Rb3+ {[%clk 0:00:25]} 56. Kf2 {[%clk 0:00:10]}  g5 {[%clk 0:00:25]} 57. Rf7+ {[%clk 0:00:09]}  Kg4 {[%clk 0:00:25]} 58. Re7 {[%clk 0:00:09]}  Rb5 {[%clk 0:00:24]} 59. Ke3 {[%clk 0:00:09]}  Kg3 {[%clk 0:00:23]} 60. Rg7 {[%clk 0:00:09]}  g4 {[%clk 0:00:23]} 61. Rg5 {[%clk 0:00:08]}  h4 {[%clk 0:00:23]} 0-1


[Site "https://www.chess.com"]

[Event "Titled Tuesday Blitz November 29 Early 2022"]
[White "Huber, Benedikt"]
[Black "Ankudinova, Yelena"]
[WhiteFideId "12923583"]
[BlackFideId "13702114"]
[WhiteElo "2199"]
[BlackElo "1930"]
[Result "0-1"]
[Round "03"]
[TimeControl "180+1"]
[Date "2022.11.30"]
[WhiteClock "0:00:53"]
[BlackClock "0:01:23"]

1. d4 {[%clk 0:01:12]}  Nf6 {[%clk 0:02:57]} 2. Nc3 {[%clk 0:01:10]}  d5 {[%clk 0:02:54]} 3. Bf4 {[%clk 0:01:10]}  a6 {[%clk 0:02:46]} 4. e3 {[%clk 0:01:11]}  Bf5 {[%clk 0:02:44]} 5. f3 {[%clk 0:01:09]}  e6 {[%clk 0:02:42]} 6. g4 {[%clk 0:01:09]}  Bg6 {[%clk 0:02:34]} 7. h4 {[%clk 0:01:09]}  h5 {[%clk 0:02:31]} 8. g5 {[%clk 0:01:10]}  Nfd7 {[%clk 0:02:29]} 9. Bd3 {[%clk 0:01:11]}  Bxd3 {[%clk 0:02:27]} 10. Qxd3 {[%clk 0:01:11]}  g6 {[%clk 0:02:26]} 11. e4 {[%clk 0:01:08]}  Nb6 {[%clk 0:02:12]} 12. O-O-O {[%clk 0:01:07]}  Bd6 {[%clk 0:02:06]} 13. Nh3 {[%clk 0:00:55]}  Bxf4+ {[%clk 0:02:01]} 14. Nxf4 {[%clk 0:00:56]}  Qd6 {[%clk 0:01:51]} 15. Qd2 {[%clk 0:00:53]}  Nc4 {[%clk 0:01:30]} 16. e5 {[%clk 0:00:53]}  Qb4 {[%clk 0:01:23]} 0-1


[Site "https://www.chess.com"]

[Event "Titled Tuesday Blitz November 29 Early 2022"]
[White "Ingebretsen, Jens E"]
[Black "Bogaudinov, Rushan"]
[WhiteFideId "1522965"]
[BlackFideId "4129288"]
[WhiteElo "2213"]
[BlackElo "1997"]
[Result "1-0"]
[Round "03"]
[TimeControl "180+1"]
[Date "2022.11.30"]
[WhiteClock "0:00:12"]
[BlackClock "0:00:11"]

1. f4 {[%clk 0:03:00]}  b6 {[%clk 0:02:39]} 2. b3 {[%clk 0:02:58]}  Bb7 {[%clk 0:02:39]} 3. Bb2 {[%clk 0:02:59]}  e6 {[%clk 0:02:39]} 4. Nf3 {[%clk 0:02:59]}  Nf6 {[%clk 0:02:39]} 5. g3 {[%clk 0:02:59]}  c5 {[%clk 0:02:39]} 6. Bg2 {[%clk 0:03:00]}  d5 {[%clk 0:02:40]} 7. O-O {[%clk 0:03:00]}  Be7 {[%clk 0:02:39]} 8. e3 {[%clk 0:03:00]}  O-O {[%clk 0:02:39]} 9. d3 {[%clk 0:03:00]}  a5 {[%clk 0:02:38]} 10. Nbd2 {[%clk 0:03:00]}  a4 {[%clk 0:02:38]} 11. a3 {[%clk 0:02:58]}  axb3 {[%clk 0:02:37]} 12. cxb3 {[%clk 0:02:59]}  b5 {[%clk 0:02:37]} 13. Qe2 {[%clk 0:02:55]}  Qb6 {[%clk 0:02:35]} 14. Kh1 {[%clk 0:02:50]}  Nc6 {[%clk 0:02:28]} 15. Ne5 {[%clk 0:02:44]}  Nxe5 {[%clk 0:02:27]} 16. Bxe5 {[%clk 0:02:41]}  Nd7 {[%clk 0:02:27]} 17. Bb2 {[%clk 0:02:41]}  Bf6 {[%clk 0:02:27]} 18. Nf3 {[%clk 0:02:35]}  Bxb2 {[%clk 0:02:23]} 19. Qxb2 {[%clk 0:02:36]}  Rfb8 {[%clk 0:02:13]} 20. b4 {[%clk 0:02:01]}  c4 {[%clk 0:02:10]} 21. Nd4 {[%clk 0:02:02]}  Rc8 {[%clk 0:02:05]} 22. Qc3 {[%clk 0:01:52]}  Nf6 {[%clk 0:02:00]} 23. dxc4 {[%clk 0:01:39]}  dxc4 {[%clk 0:01:56]} 24. Qc2 {[%clk 0:01:24]}  Bxg2+ {[%clk 0:01:54]} 25. Qxg2 {[%clk 0:01:25]}  Ng4 {[%clk 0:01:39]} 26. Qf3 {[%clk 0:01:21]}  f5 {[%clk 0:01:40]} 27. Rfc1 {[%clk 0:01:14]}  Nf6 {[%clk 0:01:37]} 28. Rc2 {[%clk 0:00:41]}  Ne4 {[%clk 0:01:32]} 29. Kg2 {[%clk 0:00:42]}  Kf7 {[%clk 0:01:27]} 30. g4 {[%clk 0:00:42]}  g6 {[%clk 0:01:27]} 31. h4 {[%clk 0:00:41]}  Ra7 {[%clk 0:01:22]} 32. h5 {[%clk 0:00:39]}  Rg8 {[%clk 0:01:19]} 33. a4 {[%clk 0:00:33]}  Rxa4 {[%clk 0:01:06]} 34. Rxa4 {[%clk 0:00:32]}  bxa4 {[%clk 0:01:07]} 35. Rxc4 {[%clk 0:00:33]}  a3 {[%clk 0:00:54]} 36. Qe2 {[%clk 0:00:26]}  Qb7 {[%clk 0:00:45]} 37. Kg1 {[%clk 0:00:25]}  gxh5 {[%clk 0:00:42]} 38. g5 {[%clk 0:00:25]}  h6 {[%clk 0:00:42]} 39. Qc2 {[%clk 0:00:25]}  a2 {[%clk 0:00:15]} 40. Rc7+ {[%clk 0:00:24]}  Kg6 {[%clk 0:00:15]} 41. Rxb7 {[%clk 0:00:21]}  a1=Q+ {[%clk 0:00:15]} 42. Kg2 {[%clk 0:00:21]}  hxg5 {[%clk 0:00:15]} 43. Qb3 {[%clk 0:00:18]}  Re8 {[%clk 0:00:13]} 44. Rb6 {[%clk 0:00:15]}  h4 {[%clk 0:00:12]} 45. Rxe6+ {[%clk 0:00:15]}  Kh5 {[%clk 0:00:12]} 46. Rxe8 {[%clk 0:00:12]}  h3+ {[%clk 0:00:13]} 47. Kh2 {[%clk 0:00:11]}  Kg4 {[%clk 0:00:11]} 48. Qc2 {[%clk 0:00:09]}  Qf1 {[%clk 0:00:10]} 49. Qe2+ {[%clk 0:00:09]}  Qxe2+ {[%clk 0:00:10]} 50. Nxe2 {[%clk 0:00:10]}  Kf3 {[%clk 0:00:10]} 51. fxg5 {[%clk 0:00:09]}  Nxg5 {[%clk 0:00:08]} 52. Ng1+ {[%clk 0:00:09]}  Kg4 {[%clk 0:00:08]} 53. Nxh3 {[%clk 0:00:09]}  Nxh3 {[%clk 0:00:08]} 54. Rg8+ {[%clk 0:00:09]}  Kf3 {[%clk 0:00:09]} 55. Kxh3 {[%clk 0:00:09]}  Kxe3 {[%clk 0:00:10]} 56. Rf8 {[%clk 0:00:10]}  Ke4 {[%clk 0:00:10]} 57. b5 {[%clk 0:00:10]}  Ke5 {[%clk 0:00:10]} 58. b6 {[%clk 0:00:11]}  Ke6 {[%clk 0:00:11]} 59. b7 {[%clk 0:00:12]}  f4 {[%clk 0:00:11]} 60. b8=Q {[%clk 0:00:12]} 1-0


[Site "https://www.chess.com"]

[Event "Titled Tuesday Blitz November 29 Early 2022"]
[White "Jaskolka, Tomasz"]
[Black "Ehlvest, Jaan"]
[WhiteFideId "1170791"]
[BlackFideId "4500016"]
[WhiteElo "2126"]
[BlackElo "2430"]
[Result "0-1"]
[Round "03"]
[TimeControl "180+1"]
[Date "2022.11.30"]
[WhiteClock "0:00:08"]
[BlackClock "0:00:39"]

1. d4 {[%clk 0:03:00]}  d5 {[%clk 0:02:56]} 2. Bf4 {[%clk 0:02:58]}  e6 {[%clk 0:02:55]} 3. e3 {[%clk 0:02:59]}  Nf6 {[%clk 0:02:55]} 4. Nd2 {[%clk 0:02:57]}  Bd6 {[%clk 0:02:53]} 5. Bg3 {[%clk 0:02:58]}  O-O {[%clk 0:02:53]} 6. c3 {[%clk 0:02:58]}  c5 {[%clk 0:02:53]} 7. Ngf3 {[%clk 0:02:59]}  Nc6 {[%clk 0:02:52]} 8. Bd3 {[%clk 0:02:59]}  Qe7 {[%clk 0:02:39]} 9. Ne5 {[%clk 0:02:56]}  Qc7 {[%clk 0:02:34]} 10. f4 {[%clk 0:02:52]}  Ne7 {[%clk 0:02:32]} 11. Qf3 {[%clk 0:02:31]}  b6 {[%clk 0:02:30]} 12. Bh4 {[%clk 0:02:27]}  Ng6 {[%clk 0:02:27]} 13. Bxf6 {[%clk 0:02:16]}  gxf6 {[%clk 0:02:28]} 14. Ng4 {[%clk 0:02:17]}  f5 {[%clk 0:02:22]} 15. Ne5 {[%clk 0:02:07]}  Bb7 {[%clk 0:02:14]} 16. h4 {[%clk 0:02:05]}  f6 {[%clk 0:01:57]} 17. Nxg6 {[%clk 0:01:38]}  hxg6 {[%clk 0:01:58]} 18. g4 {[%clk 0:01:30]}  e5 {[%clk 0:01:42]} 19. Bc2 {[%clk 0:01:10]}  exf4 {[%clk 0:01:32]} 20. gxf5 {[%clk 0:00:58]}  fxe3 {[%clk 0:01:32]} 21. Nf1 {[%clk 0:00:56]}  e2 {[%clk 0:01:25]} 22. Ne3 {[%clk 0:00:46]}  Rae8 {[%clk 0:01:18]} 23. Rg1 {[%clk 0:00:42]}  Bf4 {[%clk 0:01:07]} 24. Rxg6+ {[%clk 0:00:30]}  Kh8 {[%clk 0:01:05]} 25. Qh5+ {[%clk 0:00:10]}  Qh7 {[%clk 0:01:03]} 26. Qxh7+ {[%clk 0:00:10]}  Kxh7 {[%clk 0:01:04]} 27. Ng2 {[%clk 0:00:10]}  Bh6 {[%clk 0:00:59]} 28. Bd3 {[%clk 0:00:10]}  Bc8 {[%clk 0:00:52]} 29. h5 {[%clk 0:00:09]}  c4 {[%clk 0:00:49]} 30. Bc2 {[%clk 0:00:08]}  Rf7 {[%clk 0:00:47]} 31. Kf2 {[%clk 0:00:07]}  Rfe7 {[%clk 0:00:46]} 32. Re1 {[%clk 0:00:06]}  b5 {[%clk 0:00:43]} 33. Nh4 {[%clk 0:00:02]}  Bd2 {[%clk 0:00:43]} 34. Reg1 {[%clk 0:00:01]}  e1=Q+ {[%clk 0:00:41]} 35. Rxe1 {[%clk 0:00:02]}  Bxe1+ {[%clk 0:00:41]} 36. Kf3 {[%clk 0:00:02]}  Bxh4 {[%clk 0:00:42]} 37. Kg4 {[%clk 0:00:03]}  Bg5 {[%clk 0:00:41]} 38. Rxg5 {[%clk 0:00:02]}  Re4+ {[%clk 0:00:40]} 39. Bxe4 {[%clk 0:00:01]}  Rxe4+ {[%clk 0:00:40]} 40. Kf3 {[%clk 0:00:02]}  fxg5 {[%clk 0:00:40]} 41. f6 {[%clk 0:00:03]}  g4+ {[%clk 0:00:39]} 42. Kg3 {[%clk 0:00:04]}  Be6 {[%clk 0:00:38]} 43. h6 {[%clk 0:00:04]}  Kxh6 {[%clk 0:00:38]} 44. b3 {[%clk 0:00:04]}  Kg6 {[%clk 0:00:37]} 45. bxc4 {[%clk 0:00:05]}  bxc4 {[%clk 0:00:38]} 46. a4 {[%clk 0:00:05]}  Kxf6 {[%clk 0:00:38]} 47. a5 {[%clk 0:00:06]}  Kg5 {[%clk 0:00:38]} 48. a6 {[%clk 0:00:07]}  Re3+ {[%clk 0:00:39]} 49. Kf2 {[%clk 0:00:07]}  Rxc3 {[%clk 0:00:40]} 50. Kg2 {[%clk 0:00:08]}  g3 {[%clk 0:00:40]} 51. Kg1 {[%clk 0:00:07]}  Kg4 {[%clk 0:00:40]} 52. Kg2 {[%clk 0:00:07]}  Bf5 {[%clk 0:00:39]} 53. Kf1 {[%clk 0:00:08]}  Bd3+ {[%clk 0:00:39]} 54. Kg1 {[%clk 0:00:08]}  Kf3 {[%clk 0:00:39]} 55. Kh1 {[%clk 0:00:08]}  Rc1# {[%clk 0:00:39]} 0-1


[Site "https://www.chess.com"]

[Event "Titled Tuesday Blitz November 29 Early 2022"]
[White "Jimenez Almeida, Luis David"]
[Black "Postny, Evgeny"]
[WhiteFideId "22242244"]
[BlackFideId "2804344"]
[WhiteElo "2158"]
[BlackElo "2476"]
[Result "0-1"]
[Round "03"]
[TimeControl "180+1"]
[Date "2022.11.30"]
[WhiteClock "0:00:04"]
[BlackClock "0:00:02"]

1. e4 {[%clk 0:03:00]}  d6 {[%clk 0:02:56]} 2. d4 {[%clk 0:02:58]}  Nf6 {[%clk 0:02:55]} 3. Nc3 {[%clk 0:02:57]}  g6 {[%clk 0:02:55]} 4. g3 {[%clk 0:02:49]}  Bg7 {[%clk 0:02:55]} 5. Bg2 {[%clk 0:02:50]}  O-O {[%clk 0:02:56]} 6. Nge2 {[%clk 0:02:50]}  Nc6 {[%clk 0:02:56]} 7. Be3 {[%clk 0:02:50]}  e5 {[%clk 0:02:57]} 8. d5 {[%clk 0:02:49]}  Ne7 {[%clk 0:02:56]} 9. h3 {[%clk 0:02:48]}  Ne8 {[%clk 0:02:55]} 10. Qd2 {[%clk 0:02:47]}  f5 {[%clk 0:02:54]} 11. a4 {[%clk 0:02:38]}  Nf6 {[%clk 0:02:50]} 12. Bh6 {[%clk 0:02:32]}  fxe4 {[%clk 0:02:43]} 13. Bxg7 {[%clk 0:02:28]}  Kxg7 {[%clk 0:02:44]} 14. Bxe4 {[%clk 0:02:20]}  a6 {[%clk 0:02:33]} 15. g4 {[%clk 0:02:13]}  Bd7 {[%clk 0:02:29]} 16. Ng3 {[%clk 0:02:13]}  b5 {[%clk 0:02:27]} 17. Bg2 {[%clk 0:01:58]}  b4 {[%clk 0:02:24]} 18. Nce2 {[%clk 0:01:57]}  a5 {[%clk 0:02:17]} 19. g5 {[%clk 0:01:53]}  Nfg8 {[%clk 0:02:14]} 20. h4 {[%clk 0:01:52]}  Nf5 {[%clk 0:02:13]} 21. Nxf5+ {[%clk 0:01:52]}  Bxf5 {[%clk 0:02:12]} 22. Ng3 {[%clk 0:01:53]}  Ne7 {[%clk 0:02:08]} 23. h5 {[%clk 0:01:49]}  Qd7 {[%clk 0:01:58]} 24. b3 {[%clk 0:01:47]}  Bg4 {[%clk 0:01:46]} 25. Ne4 {[%clk 0:01:23]}  Bxh5 {[%clk 0:01:18]} 26. Nf6 {[%clk 0:01:21]}  Rxf6 {[%clk 0:01:18]} 27. gxf6+ {[%clk 0:01:22]}  Kxf6 {[%clk 0:01:19]} 28. Bh3 {[%clk 0:01:04]}  Nf5 {[%clk 0:01:14]} 29. Rg1 {[%clk 0:00:54]}  h6 {[%clk 0:01:04]} 30. Qxh6 {[%clk 0:00:47]}  Nxh6 {[%clk 0:01:04]} 31. Bxd7 {[%clk 0:00:47]}  Nf5 {[%clk 0:00:58]} 32. Bxf5 {[%clk 0:00:37]}  Kxf5 {[%clk 0:00:54]} 33. Kd2 {[%clk 0:00:32]}  Ke4 {[%clk 0:00:53]} 34. Rae1+ {[%clk 0:00:25]}  Kxd5 {[%clk 0:00:53]} 35. Re3 {[%clk 0:00:14]}  Rf8 {[%clk 0:00:52]} 36. f3 {[%clk 0:00:13]}  Rf4 {[%clk 0:00:45]} 37. Rg3 {[%clk 0:00:14]}  Rh4 {[%clk 0:00:42]} 38. c3 {[%clk 0:00:14]}  Rh2+ {[%clk 0:00:38]} 39. Kd3 {[%clk 0:00:14]}  Rb2 {[%clk 0:00:37]} 40. c4+ {[%clk 0:00:12]}  Ke6 {[%clk 0:00:20]} 41. Ke4 {[%clk 0:00:13]}  c6 {[%clk 0:00:17]} 42. Rd3 {[%clk 0:00:12]}  Re2+ {[%clk 0:00:12]} 43. Re3 {[%clk 0:00:12]}  Rd2 {[%clk 0:00:13]} 44. Rd3 {[%clk 0:00:08]}  Re2+ {[%clk 0:00:08]} 45. Re3 {[%clk 0:00:09]}  d5+ {[%clk 0:00:08]} 46. Kd3 {[%clk 0:00:09]}  Rb2 {[%clk 0:00:08]} 47. cxd5+ {[%clk 0:00:08]}  cxd5 {[%clk 0:00:08]} 48. Rg5 {[%clk 0:00:07]}  Rxb3+ {[%clk 0:00:08]} 49. Kd2 {[%clk 0:00:08]}  Rxe3 {[%clk 0:00:08]} 50. Kxe3 {[%clk 0:00:08]}  Kf6 {[%clk 0:00:06]} 51. Rg2 {[%clk 0:00:07]}  Kf5 {[%clk 0:00:05]} 52. Rd2 {[%clk 0:00:07]}  d4+ {[%clk 0:00:05]} 53. Kf2 {[%clk 0:00:07]}  g5 {[%clk 0:00:05]} 54. Rc2 {[%clk 0:00:08]}  Bf7 {[%clk 0:00:05]} 55. Rc5 {[%clk 0:00:07]}  b3 {[%clk 0:00:04]} 56. Rxa5 {[%clk 0:00:08]}  Bc4 {[%clk 0:00:05]} 57. Ra8 {[%clk 0:00:07]}  e4 {[%clk 0:00:03]} 58. fxe4+ {[%clk 0:00:06]}  Kxe4 {[%clk 0:00:04]} 59. Ke1 {[%clk 0:00:04]}  g4 {[%clk 0:00:03]} 60. Kd2 {[%clk 0:00:04]}  g3 {[%clk 0:00:03]} 61. Rg8 {[%clk 0:00:04]}  Bxg8 {[%clk 0:00:02]} 0-1


[Site "https://www.chess.com"]